fUST/lending_fUST_20250831
["ID","MTS","AMOUNT","RATE_DAILY","PERIOD"]
[382470578,1756638861638,2408.22465508,0.000175,2]
[382470579,1756638861771,-270.86907218,0.00017529,2]
[382470580,1756638865199,-219.26402932,0.00017528,2]
[382470581,1756638868587,-162.15472784,0.00017528,2]
[382470582,1756638871413,-98.58124284,0.00017528,2]
[382470583,1756638871435,-249.71944089,0.00017528,2]
[382470584,1756638873170,-156.22643591,0.00017529,2]
[382470585,1756638875665,-201.92181223,0.00017528,2]
[382470586,1756638877926,-267.81944461,0.00017528,2]
[382470587,1756638879653,-10.25874316,0.00017528,2]
[382470588,1756638879675,-197.00481581,0.00017529,2]
[382470589,1756638881923,-187.25532479,0.00017529,2]
[382470590,1756638883869,-203.95911309,0.00017529,2]
[382470591,1756638885480,2289.24910968,0.000175,2]
[382470592,1756638885618,-309.55653536,0.00017529,2]
[382470593,1756638886235,1000.0,0.00016629,2]
[382470594,1756638887265,-363.20803219,0.00017529,2]
[382470595,1756638889977,-183.28086761,0.00017528,2]
[382470596,1756638893685,-166.97784447,0.00017519,3]
[382470597,1756638896025,-198.95215553,0.00017519,3]
[382470598,1756638896050,-22.79284501,0.00017528,2]
[382470599,1756638900158,-266.42208042,0.00017528,2]
[382470600,1756638903536,-151.34458855,0.00017519,3]
[382470601,1756638908140,-31.61541145,0.00017519,3]
[382470602,1756638908165,-7.50420696,0.00017528,2]
[382470603,1756638908187,-145.22749429,0.00017528,2]
[382470604,1756638909121,1866.49406223,0.000175,2]
[382470605,1756638909771,184.50713836,0.00017459,2]
[382470606,1756638909795,76.49286164,0.00017459,2]
[382470607,1756638910290,-154.77250571,0.00017528,2]
[382470608,1756638910313,-63.94918168,0.00017528,2]
[382470609,1756638911865,-186.41366048,0.00017519,3]
[382470610,1756638917822,-225.67272249,0.00017519,3]
[382470611,1756638919598,-136.83361703,0.00017519,3]
[382470612,1756638919621,-30.57199023,0.00017528,2]
[382470613,1756638921739,-205.47882809,0.00017528,2]
[382470614,1756638921766,-6.3149216,0.00017528,2]
[382470615,1756638924575,-228.55692904,0.00017528,2]
[382470616,1756638926743,-207.0582772,0.00017528,2]
[382470617,1756638930062,-324.84347838,0.00017528,2]
[382470618,1756638931647,-168.60608282,0.00017528,2]
[382470619,1756638932990,1921.84270265,0.000175,2]
[382470620,1756638935002,-173.85213461,0.00017528,2]
[382470621,1756638936716,-90.76817635,0.00017528,2]
[382470622,1756638936737,-276.66077741,0.00017528,2]
[382470623,1756638940058,2735.84017562,0.0001746,2]
[382470624,1756638940510,-167.3945075,0.00017528,2]
[382470625,1756638942152,-35.94471509,0.00017528,2]
[382470626,1756638942186,-348.89284978,0.00017528,2]
[382470627,1756638943287,399.90310641,0.00017018,2]
[382470628,1756638945039,377.67751221,0.00017003,2]
[382470629,1756638945413,-136.75737081,0.00017528,2]
[382470630,1756638945436,-38.20239281,0.00017528,2]
[382470631,1756638948227,-152.30331985,0.00017528,2]
[382470632,1756638948574,3152.09380735,0.000175,2]
[382470633,1756638949913,-250.45980413,0.00017528,2]
[382470634,1756638951389,-39.03448321,0.00017528,2]
[382470635,1756638951411,-153.01102579,0.00017528,2]
[382470636,1756638953544,-194.10088652,0.00017528,2]
[382470637,1756638956173,-172.3145046,0.00017528,2]
[382470638,1756638958308,1336.15983412,0.000175,2]
[382470639,1756638958331,889.82869256,0.000175,2]
[382470640,1756638959639,-248.78358309,0.00017528,2]
[382470641,1756638959663,-135.57472418,0.00017528,2]
[382470642,1756638961189,-152.50946757,0.00017528,2]
[382470643,1756638962273,155.65542487,0.0001747,2]
[382470644,1756638964296,-241.19932229,0.00017527,2]
[382470645,1756638967893,-58.80067771,0.00017527,2]
[382470646,1756638967916,-237.68351669,0.00017528,2]
[382470647,1756638972899,-289.54019587,0.00017528,2]
[382470648,1756638974539,-271.86637142,0.00017528,2]
[382470649,1756638976117,-317.41944096,0.00017528,2]
[382470650,1756638977860,-161.48883767,0.00017528,2]
[382470651,1756638979953,-88.70744564,0.00017528,2]
[382470652,1756638979979,-166.36263695,0.00017528,2]
[382470653,1756638981501,2287.18064205,0.000175,2]
[382470654,1756638982115,-239.28286799,0.00017528,2]
[382470655,1756638983662,-74.35449506,0.00017528,2]
[382470656,1756638983684,-139.43426073,0.00017528,2]
[382470657,1756638991022,-340.56573927,0.00017528,2]
[382470658,1756638991043,-39.77352976,0.00017528,2]
[382470659,1756638992654,-160.03645334,0.00017528,2]
[382470660,1756638996719,-280.1900169,0.00017528,2]
[382470661,1756638996744,-62.87081277,0.00017528,2]
[382470662,1756638998906,-222.62729898,0.00017528,2]
[382470663,1756639000603,-196.06903666,0.00017528,2]
[382470664,1756639000625,-24.14321817,0.00017528,2]
[382470665,1756639003907,-442.52658753,0.00017528,2]
[382470666,1756639004342,1874.38135888,0.000175,2]
[382470667,1756639006791,-13.3301943,0.00017528,2]
[382470668,1756639006820,-199.4684622,0.00017528,2]
[382470669,1756639013223,-282.42223665,0.00017528,2]
[382470670,1756639013248,-45.58775653,0.00017528,2]
[382470671,1756639015493,-191.2149475,0.00017528,2]
[382470672,1756639018374,-175.54632062,0.00017528,2]
[382470673,1756639020049,728.820447,0.000175,2]
[382470674,1756639020078,-69.28050054,0.00017528,2]
[382470675,1756639020100,-118.71015791,0.00017528,2]
[382470676,1756639022233,-363.35131201,0.00017528,2]
[382470677,1756639022257,-15.86065974,0.00017528,2]
[382470678,1756639025481,-222.12042826,0.00017527,2]
[382470679,1756639025565,2579.43345733,0.0001746,2]
[382470680,1756639028157,1484.70997731,0.000175,2]
[382470681,1756639028182,432.58915822,0.000175,2]
[382470682,1756639028452,-77.87957174,0.00017527,2]
[382470683,1756639028472,-179.17445936,0.00017528,2]
[382470684,1756639030096,-284.9648809,0.00017528,2]
[382470685,1756639030120,-30.12119297,0.00017528,2]
[382470686,1756639033907,-306.99465509,0.00017528,2]
[382470687,1756639036743,-154.29035875,0.00017528,2]
[382470688,1756639036765,-14.69773425,0.00017528,2]
[382470689,1756639038375,-232.12252053,0.00017528,2]
[382470690,1756639039955,-244.97043413,0.00017528,2]
[382470691,1756639042663,-82.36931109,0.00017528,2]
[382470692,1756639042686,-76.42333909,0.00017528,2]
[382470693,1756639043985,1216.49132108,0.000175,2]
[382470694,1756639045333,-156.46107555,0.00017528,2]
[382470695,1756639046844,-234.21051928,0.00017528,2]
[382470696,1756639052920,2296.80048099,0.000175,2]
[382470697,1756639061215,5000.0,0.000175,2]
[382470698,1756639061898,202.50739025,0.00017442,2]
[382470699,1756639085871,749.2341924,0.00016565,2]
[382470700,1756639086170,-217.13076283,0.00017519,3]
[382470701,1756639090829,-221.97923717,0.00017519,3]
[382470702,1756639135155,102.38745706,0.00016532,2]
[382470703,1756639135183,10000.01,0.00016532,2]
[382470704,1756639135211,2886.91954924,0.00016532,2]
[382470708,1756639242830,225.92586758,0.0001746,2]
[382470709,1756639253518,948.999899,0.00016528,2]
[382470710,1756639395904,202.50739025,0.00017428,2]
[382470711,1756639437939,-220.21225483,0.00017518,2]
[382470712,1756639442395,-79.78774517,0.00017518,2]
[382470713,1756639442420,-162.42712842,0.00017518,2]
[382470714,1756639446572,-179.128694,0.00017518,2]
[382470715,1756639448253,-224.23840997,0.00017518,2]
[382470716,1756639450463,-60.14851816,0.00017518,2]
[382470717,1756639450695,-137.38416213,0.00017518,2]
[382470718,1756639453865,-162.61583787,0.00017518,2]
[382470719,1756639453889,-151.0,0.00017519,2]
[382470720,1756639453912,-143.4725682,0.00017519,2]
[382470721,1756639456078,-7.5274318,0.00017519,2]
[382470722,1756639456107,-147.90955146,0.00017519,2]
[382470723,1756639457326,-3.09044854,0.00017519,2]
[382470724,1756639457356,-151.0,0.00017519,2]
[382470725,1756639457385,-117.62449226,0.00017519,2]
[382470726,1756639519391,10000.01,0.00016527,2]
[382470727,1756639519417,3144.2042223,0.00016527,2]
[382470728,1756639531276,5000.0,0.000175,2]
[382470729,1756639554294,1855.8057777,0.000175,2]
[382470730,1756639554321,3144.1942223,0.000175,2]
[382470732,1756639577837,5000.0,0.000175,2]
[382470733,1756639601411,1855.8157777,0.000175,2]
[382470734,1756639601437,3144.1842223,0.000175,2]
[382470735,1756639625309,2785.41174052,0.000175,2]
[382470736,1756639631364,647.43779779,0.0001746,2]
[382470737,1756639662110,-229.8203481,0.00017518,2]
[382470738,1756639664817,-279.62088815,0.00017518,2]
[382470739,1756639666426,-406.36314051,0.00017518,2]
[382470740,1756639668541,-203.39422408,0.00017518,2]
[382470741,1756639672530,-80.80139916,0.00017518,2]
[382470742,1756639672556,-88.4676372,0.00017518,2]
[382470743,1756639675083,-151.0,0.00017518,2]
[382470744,1756639676255,-60.5323628,0.00017518,2]
[382470745,1756639676283,-33.37550774,0.00017519,2]
[382470746,1756639676310,-151.0,0.00017519,2]
[382470747,1756639676338,-57.3369058,0.00017519,2]
[382470748,1756639678383,-93.6630942,0.00017519,2]
[382470749,1756639678405,-151.0,0.00017519,2]
[382470750,1756639678430,-119.90365001,0.00017519,2]
[382470753,1756639679984,-31.09634999,0.00017519,2]
[382470754,1756639680006,-151.0,0.00017519,2]
[382470755,1756639680029,-35.67211915,0.00017519,2]
[382470756,1756639680949,716.6418,0.00013699,2]
[382470757,1756639682160,-404.90157682,0.00017519,2]
[382470758,1756639683771,-231.0362569,0.00017518,2]
[382470761,1756639702755,1000.56543186,0.00015,2]
[382470762,1756639714982,1705.76900753,0.00017,2]
[382470763,1756639715012,5162.42103651,0.00017,2]
[382470764,1756639718831,584.21175831,0.000149,2]
[382470765,1756639719109,1000.0,0.0001,2]
[382470766,1756639723161,251.17282464,0.00017427,2]
[382470767,1756639725218,251.17282463,0.00017431,2]
[382470768,1756639727221,251.17282463,0.00017435,2]
[382470769,1756639729231,251.17282463,0.00017438,2]
[382470770,1756639730714,2248.68590665,0.00016526,2]
[382470771,1756639730736,7751.31409335,0.00016526,2]
[382470772,1756639731180,251.17282463,0.00017442,2]
[382470773,1756639747184,500.0,0.0001747,2]
[382470793,1756639832294,-1200.0,0.00017517,2]
[382470794,1756639832303,-799.28,0.00017518,3]
[382470795,1756639832313,-399.64,0.00017518,3]
[382470796,1756639832322,-199.82,0.00017518,3]
[382470797,1756639832331,-599.49,0.00017518,3]
[382470798,1756639832341,-300.0,0.00017518,2]
[382470799,1756639832350,-209.40437684,0.00017519,2]
[382470800,1756639832361,-500.0,0.00017519,2]
[382470801,1756639832370,-500.0,0.00017519,2]
[382470802,1756639832379,-500.0,0.00017519,2]
[382470803,1756639832388,-500.0,0.00017519,2]
[382470804,1756639832398,-500.0,0.00017519,2]
[382470805,1756639832408,-500.0,0.00017519,2]
[382470806,1756639832417,-500.0,0.00017519,2]
[382470807,1756639832426,-500.0,0.00017519,2]
[382470808,1756639832436,-500.0,0.00017519,2]
[382470809,1756639832445,-500.0,0.00017519,2]
[382470810,1756639832454,-500.0,0.00017519,2]
[382470811,1756639832463,-519.72023464,0.00017519,2]
[382470812,1756639832473,-2618.2481025,0.00017519,2]
[382470813,1756639832483,-29791.87624326,0.00017521,2]
[382470877,1756639838355,-245.86921745,0.0001752,2]
[382470879,1756639838365,-153299.30917714,0.00017521,2]
[382470881,1756639838375,-257.0,0.00017525,2]
[382470883,1756639838384,-480.0,0.00017525,2]
[382470885,1756639838393,-1100.98,0.00017525,2]
[382470887,1756639838403,-1504.12,0.00017525,2]
[382470889,1756639838413,-1405.73,0.00017525,2]
[382470891,1756639838422,-3273.95,0.00017525,2]
[382470893,1756639838431,-3811.81,0.00017525,2]
[382470895,1756639838441,-480.0,0.00017525,2]
[382470897,1756639838450,-480.0,0.00017525,2]
[382470899,1756639838459,-736.2,0.00017525,2]
[382470901,1756639838468,-480.0,0.00017525,2]
[382470903,1756639838478,-1377.53,0.00017525,2]
[382470905,1756639838486,-1585.84,0.00017525,2]
[382470907,1756639838493,-480.0,0.00017525,2]
[382470909,1756639838502,-480.0,0.00017526,2]
[382470911,1756639838510,-480.0,0.00017526,2]
[382470913,1756639838518,-4499.38,0.00017526,2]
[382470915,1756639838525,-676.18,0.00017526,2]
[382470917,1756639838532,-480.0,0.00017526,2]
[382470919,1756639838540,-480.0,0.00017526,2]
[382470920,1756639838548,-1216.24,0.00017526,2]
[382470922,1756639838555,-1963.57,0.00017526,2]
[382470925,1756639838564,-1068.3,0.00017526,2]
[382470927,1756639838573,-1570.05,0.00017526,2]
[382470929,1756639838581,-700.37,0.00017526,2]
[382470930,1756639838588,-484.04,0.00017526,2]
[382470933,1756639838597,-1552.87,0.00017526,2]
[382470935,1756639838606,-1598.4,0.00017526,2]
[382470937,1756639838615,-6508.66,0.00017526,2]
[382470938,1756639838622,-1612.64,0.00017526,2]
[382470941,1756639838631,-777.08,0.00017526,2]
[382470943,1756639838640,-480.0,0.00017526,2]
[382470945,1756639838652,-480.0,0.00017526,2]
[382470947,1756639838661,-3156.11,0.00017526,2]
[382470949,1756639838671,-480.0,0.00017526,2]
[382470951,1756639838680,-1395.91,0.00017526,2]
[382470953,1756639838690,-500.0,0.00017527,2]
[382470955,1756639838699,-378.14187681,0.00017527,2]
[382470957,1756639838708,-480.0,0.00017527,2]
[382470959,1756639838718,-200.0,0.00017527,2]
[382470961,1756639838728,-480.0,0.00017527,2]
[382470963,1756639838739,-567.65,0.00017527,2]
[382470965,1756639838749,-480.95599647,0.00017527,2]
[382470967,1756639838759,-480.0,0.00017527,2]
[382470969,1756639838769,-951.71,0.00017527,2]
[382470971,1756639838779,-483.00033591,0.00017527,2]
[382470973,1756639838788,-2293.58,0.00017527,2]
[382470975,1756639838797,-762.83,0.00017527,2]
[382470977,1756639838807,-480.0,0.00017527,2]
[382470979,1756639838816,-480.0,0.00017527,2]
[382470981,1756639838826,-480.0,0.00017527,2]
[382470983,1756639838835,-1336.81,0.00017527,2]
[382470985,1756639838846,-1733.31,0.00017527,2]
[382470987,1756639838856,-574.82,0.00017527,2]
[382470989,1756639838868,-1802.98,0.00017527,2]
[382470992,1756639838879,-1419.27,0.00017527,2]
[382470994,1756639838889,-480.0,0.00017527,2]
[382470996,1756639838899,-480.0,0.00017527,2]
[382470998,1756639838909,-847.45,0.00017527,2]
[382471000,1756639838918,-846.82,0.00017527,2]
[382471002,1756639838928,-810.03,0.00017527,2]
[382471004,1756639838937,-526.81,0.00017527,2]
[382471006,1756639838946,-480.0,0.00017527,2]
[382471008,1756639838955,-500.0,0.00017527,2]
[382471010,1756639838965,-1027.81,0.00017527,2]
[382471012,1756639838975,-1280.68,0.00017527,2]
[382471014,1756639838984,-5203.96,0.00017527,2]
[382471016,1756639838993,-571.71987851,0.00017527,2]
[382471018,1756639839002,-4374.32,0.00017527,2]
[382471019,1756639839011,-480.0,0.00017527,2]
[382471021,1756639839021,-621.02,0.00017527,2]
[382471023,1756639839030,-1725.03,0.00017527,2]
[382471025,1756639839039,-846.27,0.00017527,2]
[382471027,1756639839049,-945.67,0.00017527,2]
[382471029,1756639839058,-1313.76,0.00017527,2]
[382471031,1756639839068,-480.0,0.00017527,2]
[382471033,1756639839077,-528.09,0.00017527,2]
[382471035,1756639839087,-1326.51,0.00017527,2]
[382471037,1756639839097,-899.63,0.00017527,2]
[382471039,1756639839107,-480.0,0.00017527,2]
[382471041,1756639839116,-1326.69,0.00017527,2]
[382471043,1756639839125,-891.65,0.00017527,2]
[382471045,1756639839135,-480.0,0.00017527,2]
[382471047,1756639839145,-500.0,0.00017527,2]
[382471049,1756639839154,-151.0,0.00017527,2]
[382471051,1756639839164,-151.0,0.00017527,2]
[382471054,1756639839174,-500.0,0.00017527,2]
[382471056,1756639839184,-500.0,0.00017527,2]
[382471058,1756639839193,-1303.78,0.00017527,2]
[382471060,1756639839202,-151.0,0.00017527,2]
[382471061,1756639839212,-2204.94,0.00017527,2]
[382471064,1756639839222,-151.0,0.00017527,2]
[382471065,1756639839232,-1817.44,0.00017527,2]
[382471067,1756639839242,-151.0,0.00017527,2]
[382471069,1756639839251,-151.0,0.00017527,2]
[382471070,1756639839260,-581.79,0.00017527,2]
[382471071,1756639839269,-732.42,0.00017527,2]
[382471072,1756639839278,-480.0,0.00017527,2]
[382471073,1756639839287,-480.0,0.00017527,2]
[382471074,1756639839296,-2457.6,0.00017527,2]
[382471075,1756639839305,-1585.47,0.00017527,2]
[382471076,1756639839314,-480.0,0.00017527,2]
[382471077,1756639839323,-1603.07,0.00017527,2]
[382471078,1756639839332,-2156.65,0.00017527,2]
[382471079,1756639839341,-2823.29,0.00017527,2]
[382471080,1756639839350,-480.0,0.00017527,2]
[382471081,1756639839359,-961.83,0.00017527,2]
[382471082,1756639839369,-520.71,0.00017527,2]
[382471083,1756639839378,-875.66,0.00017527,2]
[382471084,1756639839387,-1542.0,0.00017527,2]
[382471085,1756639839396,-511.51,0.00017527,2]
[382471086,1756639839405,-896.05,0.00017527,2]
[382471087,1756639839414,-2047.87,0.00017527,2]
[382471088,1756639839422,-500.0,0.00017527,2]
[382471089,1756639839431,-500.0,0.00017527,2]
[382471090,1756639839440,-151.60746108,0.00017527,2]
[382471091,1756639839449,-1317.44,0.00017527,2]
[382471092,1756639839458,-500.0,0.00017527,2]
[382471093,1756639839467,-1636.71,0.00017527,2]
[382471094,1756639839476,-151.0,0.00017527,2]
[382471095,1756639839485,-151.0,0.00017527,2]
[382471097,1756639839494,-555.76,0.00017527,2]
[382471099,1756639839504,-480.0,0.00017527,2]
[382471101,1756639839514,-480.0,0.00017527,2]
[382471103,1756639839523,-179.45001036,0.00017527,2]
[382471105,1756639839532,-500.0,0.00017527,2]
[382471107,1756639839542,-500.0,0.00017527,2]
[382471109,1756639839551,-965.47,0.00017527,2]
[382471111,1756639839560,-151.0,0.00017527,2]
[382471113,1756639839570,-887.38,0.00017527,2]
[382471115,1756639839579,-1940.32,0.00017527,2]
[382471117,1756639839589,-809.39,0.00017527,2]
[382471119,1756639839598,-646.75,0.00017527,2]
[382471121,1756639839608,-1843.78,0.00017527,2]
[382471123,1756639839617,-1171.4,0.00017527,2]
[382471125,1756639839628,-480.0,0.00017527,2]
[382471127,1756639839637,-480.0,0.00017527,2]
[382471129,1756639839647,-855.65,0.00017527,2]
[382471131,1756639839659,-554.55,0.00017527,2]
[382471133,1756639839668,-504.38854327,0.00017527,2]
[382471135,1756639839678,-500.0,0.00017528,2]
[382471137,1756639839688,-12.90506608,0.00017528,2]
[382471139,1756639839698,-480.0,0.00017528,2]
[382471141,1756639839707,-480.0,0.00017528,2]
[382471143,1756639839717,-480.0,0.00017528,2]
[382471145,1756639839728,-480.0,0.00017528,2]
[382471147,1756639839737,-571.58,0.00017528,2]
[382471149,1756639839747,-480.0,0.00017528,2]
[382471151,1756639839756,-480.0,0.00017528,2]
[382471153,1756639839765,-480.0,0.00017528,2]
[382471155,1756639839775,-480.0,0.00017528,2]
[382471157,1756639839784,-480.0,0.00017528,2]
[382471159,1756639839794,-480.0,0.00017528,2]
[382471161,1756639839804,-475.0,0.00017528,2]
[382471163,1756639839814,-1194.17,0.00017528,2]
[382471165,1756639839824,-829.2,0.00017528,2]
[382471168,1756639839833,-480.0,0.00017528,2]
[382471171,1756639839843,-480.0,0.00017528,2]
[382471174,1756639839852,-248.91033617,0.00017528,2]
[382471199,1756639839862,-480.0,0.00017528,2]
[382471202,1756639840059,-480.0,0.00017528,2]
[382471204,1756639840069,-480.0,0.00017528,2]
[382471206,1756639840079,-610.71,0.00017528,2]
[382471208,1756639840089,-480.0,0.00017528,2]
[382471210,1756639840098,-480.0,0.00017528,2]
[382471212,1756639840108,-871.46,0.00017528,2]
[382471213,1756639840118,-480.0,0.00017528,2]
[382471216,1756639840127,-482.32,0.00017528,2]
[382471218,1756639840137,-480.0,0.00017528,2]
[382471220,1756639840146,-480.0,0.00017528,2]
[382471222,1756639840155,-957.25,0.00017528,2]
[382471224,1756639840165,-549.82,0.00017528,2]
[382471226,1756639840174,-480.0,0.00017528,2]
[382471228,1756639840183,-1032.08,0.00017528,2]
[382471230,1756639840193,-1278.6,0.00017528,2]
[382471232,1756639840202,-793.35,0.00017528,2]
[382471234,1756639840211,-480.0,0.00017528,2]
[382471236,1756639840220,-480.0,0.00017528,2]
[382471238,1756639840230,-1247.13,0.00017528,2]
[382471240,1756639840239,-480.0,0.00017528,2]
[382471242,1756639840248,-480.0,0.00017528,2]
[382471243,1756639840257,-480.0,0.00017528,2]
[382471245,1756639840272,-480.0,0.00017528,2]
[382471247,1756639840286,-480.0,0.00017528,2]
[382471249,1756639840296,-480.0,0.00017528,2]
[382471252,1756639840306,-480.0,0.00017528,2]
[382471253,1756639840315,-480.0,0.00017528,2]
[382471255,1756639840324,-456.21474337,0.00017528,2]
[382471257,1756639840334,-480.0,0.00017528,2]
[382471259,1756639840344,-480.0,0.00017528,2]
[382471261,1756639840353,-582.49111764,0.00017528,2]
[382471263,1756639840363,-569.85,0.00017528,2]
[382471265,1756639840373,-480.0,0.00017528,2]
[382471267,1756639840382,-551.65,0.00017528,2]
[382471269,1756639840391,-480.0,0.00017528,2]
[382471271,1756639840401,-481.13981514,0.00017528,2]
[382471273,1756639840410,-480.0,0.00017528,2]
[382471275,1756639840419,-480.0,0.00017528,2]
[382471277,1756639840429,-480.0,0.00017528,2]
[382471279,1756639840438,-480.0,0.00017528,2]
[382471281,1756639840448,-1282.96,0.00017528,2]
[382471283,1756639840461,-480.0,0.00017528,2]
[382471285,1756639840470,-480.0,0.00017528,2]
[382471287,1756639840479,-480.0,0.00017528,2]
[382471289,1756639840488,-480.0,0.00017528,2]
[382471291,1756639840498,-480.0,0.00017528,2]
[382471294,1756639840507,-480.0,0.00017528,2]
[382471297,1756639840516,-480.0,0.00017528,2]
[382471300,1756639840525,-480.0,0.00017528,2]
[382471302,1756639840535,-495.7,0.00017528,2]
[382471304,1756639840544,-480.0,0.00017528,2]
[382471306,1756639840554,-480.0,0.00017528,2]
[382471308,1756639840562,-480.0,0.00017528,2]
[382471310,1756639840572,-506.66,0.00017528,2]
[382471313,1756639840581,-480.0,0.00017528,2]
[382471315,1756639840591,-480.0,0.00017528,2]
[382471317,1756639840601,-480.0,0.00017528,2]
[382471319,1756639840611,-665.04,0.00017528,2]
[382471321,1756639840620,-480.0,0.00017528,2]
[382471323,1756639840629,-480.0,0.00017528,2]
[382471325,1756639840638,-480.982218,0.00017528,2]
[382471327,1756639840648,-576.54,0.00017528,2]
[382471328,1756639840659,-457.77380632,0.00017528,2]
[382471331,1756639840669,-480.0,0.00017528,2]
[382471332,1756639840678,-480.0,0.00017528,2]
[382471334,1756639840688,-719.21,0.00017528,2]
[382471337,1756639840697,-480.0,0.00017528,2]
[382471339,1756639840707,-480.0,0.00017528,2]
[382471341,1756639840717,-566.36,0.00017528,2]
[382471343,1756639840726,-480.0,0.00017528,2]
[382471345,1756639840736,-480.0,0.00017528,2]
[382471347,1756639840745,-729.36,0.00017528,2]
[382471349,1756639840754,-480.0,0.00017528,2]
[382471351,1756639840764,-480.0,0.00017528,2]
[382471353,1756639840774,-480.0,0.00017528,2]
[382471355,1756639840784,-480.0,0.00017528,2]
[382471357,1756639840794,-480.0,0.00017528,2]
[382471359,1756639840804,-1513.89,0.00017528,2]
[382471361,1756639840814,-1959.04,0.00017528,2]
[382471363,1756639840823,-480.0,0.00017528,2]
[382471365,1756639840833,-1782.93,0.00017528,2]
[382471367,1756639840842,-906.98,0.00017528,2]
[382471369,1756639840852,-480.0,0.00017528,2]
[382471371,1756639840861,-480.0,0.00017528,2]
[382471373,1756639840871,-480.0,0.00017528,2]
[382471375,1756639840881,-480.0,0.00017528,2]
[382471377,1756639840890,-599.79,0.00017528,2]
[382471378,1756639840899,-480.0,0.00017528,2]
[382471380,1756639840909,-1869.57,0.00017528,2]
[382471382,1756639840918,-480.0,0.00017528,2]
[382471384,1756639840928,-480.0,0.00017528,2]
[382471386,1756639840937,-2153.77,0.00017528,2]
[382471387,1756639840947,-738.36,0.00017528,2]
[382471389,1756639840956,-480.0,0.00017528,2]
[382471391,1756639840965,-512.56,0.00017528,2]
[382471393,1756639840974,-480.0,0.00017528,2]
[382471395,1756639840983,-1572.18,0.00017528,2]
[382471397,1756639840993,-480.0,0.00017528,2]
[382471399,1756639841002,-480.0,0.00017528,2]
[382471401,1756639841011,-480.0,0.00017528,2]
[382471403,1756639841021,-1225.05,0.00017528,2]
[382471405,1756639841031,-7621.64,0.00017528,2]
[382471407,1756639841040,-12905.7,0.00017528,2]
[382471409,1756639841050,-1485.55,0.00017528,2]
[382471411,1756639841059,-480.0,0.00017528,2]
[382471413,1756639841069,-481.98236086,0.00017528,2]
[382471415,1756639841078,-482.2012894,0.00017528,2]
[382471417,1756639841087,-535.44,0.00017528,2]
[382471419,1756639841096,-2770.45,0.00017528,2]
[382471421,1756639841106,-3702.65,0.00017528,2]
[382471423,1756639841115,-1794.98,0.00017528,2]
[382471425,1756639841125,-737.04,0.00017528,2]
[382471427,1756639841137,-480.0,0.00017528,2]
[382471429,1756639841147,-768.31,0.00017528,2]
[382471431,1756639841156,-480.0,0.00017528,2]
[382471433,1756639841165,-480.0,0.00017528,2]
[382471435,1756639841175,-1881.33,0.00017528,2]
[382471437,1756639841184,-858.19,0.00017528,2]
[382471439,1756639841194,-501.86,0.00017528,2]
[382471441,1756639841203,-191.45152546,0.00017528,2]
[382471443,1756639841212,-480.77654323,0.00017528,2]
[382471445,1756639841222,-9809.04,0.00017528,2]
[382471447,1756639841232,-673.45,0.00017528,2]
[382471449,1756639841241,-674.79,0.00017528,2]
[382471451,1756639841251,-480.0,0.00017528,2]
[382471453,1756639841261,-480.0,0.00017528,2]
[382471455,1756639841271,-480.61044114,0.00017528,2]
[382471457,1756639841280,-9350.55,0.00017528,2]
[382471459,1756639841290,-480.0,0.00017528,2]